bitfinex-derivatives/quotes_BTCF0:USTF0_20251214
["timestamp","ask_amount","ask_price","bid_price","bid_amount"]
[1765747017463,0.45467813,88651.0,88650.0,0.0301]
[1765747017874,0.45467813,88651.0,88650.0,0.05729]
[1765747019180,0.45467813,88651.0,88650.0,0.002]
[1765747023383,0.09387813,88651.0,88650.0,0.002]
[1765747023681,0.45467813,88651.0,88650.0,0.002]
[1765747024382,0.09387813,88651.0,88650.0,0.002]
[1765747024572,0.45467813,88651.0,88650.0,0.002]
[1765747025583,0.09387813,88651.0,88650.0,0.002]
[1765747025772,0.45453295,88651.0,88650.0,0.002]
[1765747027983,0.45453295,88651.0,88638.0,0.3608]
[1765747027984,0.05619,88639.0,88638.0,0.70272]
[1765747028574,0.0674696,88639.0,88638.0,0.70272]
[1765747029176,0.0744696,88639.0,88638.0,0.70272]
[1765747030288,0.06319,88639.0,88638.0,0.70272]
[1765747030490,0.06319,88639.0,88638.0,0.75801]
[1765747035293,0.06319,88639.0,88638.0,0.73082]
[1765747035487,0.06319,88639.0,88638.0,0.75801]
[1765747035895,0.08990943,88639.0,88638.0,0.75801]
[1765747036489,0.08990943,88639.0,88632.0,0.01643]
[1765747036490,0.05619,88633.0,88632.0,0.07172]
[1765747036695,0.08290943,88633.0,88632.0,0.56145]
[1765747037491,0.08590943,88633.0,88632.0,0.56145]
[1765747037993,0.08790943,88633.0,88632.0,0.56145]
[1765747043094,0.05619,88625.0,88624.0,0.00016932]
[1765747043284,0.44370943,88625.0,88624.0,0.05545932]
[1765747044290,0.44570943,88625.0,88624.0,0.05545932]
[1765747044496,0.44670943,88625.0,88624.0,0.05545932]
[1765747045883,0.44674099,88625.0,88624.0,0.00016932]
[1765747046394,0.41999,88625.0,88624.0,0.00016932]
[1765747046597,0.44673635,88625.0,88624.0,0.00016932]
[1765747047599,0.0112828,88615.0,88612.0,0.05764]
[1765747047802,0.05909,88612.0,88606.0,0.01150697]
[1765747048092,0.10278635,88612.0,88606.0,0.01150697]
[1765747048299,0.10278635,88612.0,88611.0,0.733]
[1765747048888,0.10278635,88612.0,88611.0,0.76254]
[1765747049093,0.10278635,88612.0,88611.0,0.76454]
[1765747050902,0.08583635,88612.0,88611.0,0.76454]
[1765747051108,0.05645698,88612.0,88611.0,0.76454]
[1765747051296,0.02687698,88612.0,88611.0,0.76454]
[1765747051599,0.00016898,88620.0,88611.0,0.76454]
[1765747051600,0.00016898,88620.0,88619.0,0.05649]
[1765747051799,0.02704358,88620.0,88619.0,0.05649]
[1765747053205,0.08453358,88620.0,88619.0,0.0677722]
[1765747053889,0.08553358,88620.0,88619.0,0.0677722]
[1765747054603,0.08553358,88620.0,88619.0,0.0687722]
[1765747057794,0.05865898,88620.0,88619.0,0.0687722]
[1765747062910,0.08556181,88620.0,88619.0,0.0687722]
[1765747067010,0.08158281,88620.0,88619.0,0.0687722]
[1765747068326,0.08158281,88620.0,88619.0,0.05749]
[1765747071505,0.44238281,88620.0,88619.0,0.05749]
[1765747073622,0.08158281,88620.0,88619.0,0.05749]
[1765747073808,0.44238281,88620.0,88619.0,0.05749]
[1765747079312,0.08158281,88620.0,88619.0,0.05749]
[1765747083127,0.45512281,88620.0,88619.0,0.001]
[1765747083426,0.0673237,88607.0,88606.0,0.05497]
[1765747083627,0.08294283,88607.0,88606.0,0.05497]
[1765747084626,0.08294283,88607.0,88606.0,0.05697]
[1765747085120,0.08294283,88607.0,88606.0,0.05997]
[1765747086321,0.08294283,88607.0,88606.0,0.05797]
[1765747086522,0.08294283,88607.0,88606.0,0.05897]
[1765747087129,0.08294283,88607.0,88606.0,0.05797]
[1765747087325,0.08294283,88607.0,88606.0,0.05897]
[1765747094323,0.08294283,88607.0,88606.0,0.03166]
[1765747094734,0.08294283,88607.0,88606.0,0.05897]
[1765747095229,0.08294283,88607.0,88606.0,0.004]
[1765747095534,0.08294283,88607.0,88606.0,0.002]
[1765747095734,0.08294283,88607.0,88606.0,0.001]
[1765747095934,0.05604,88604.0,88603.0,0.05513922]
[1765747096125,0.08294283,88604.0,88603.0,0.05513922]
[1765747098232,0.08294283,88604.0,88603.0,0.05613922]
[1765747106833,0.08294283,88604.0,88603.0,0.02882922]
[1765747107038,0.08294283,88604.0,88603.0,0.05772922]
[1765747113946,0.05559283,88604.0,88603.0,0.05772922]
[1765747114148,0.3720824,88618.0,88617.0,0.07133]
[1765747114149,0.41691,88618.0,88617.0,0.07133]
[1765747114351,0.41691,88618.0,88617.0,0.0826124]
[1765747114540,0.3608,88618.0,88617.0,0.0826124]
[1765747114740,0.41691,88625.0,88624.0,0.07516]
[1765747116244,0.05611,88625.0,88624.0,0.07516]
[1765747117250,0.06011,88625.0,88624.0,0.07516]
[1765747117443,0.06111,88625.0,88624.0,0.07516]
[1765747117853,0.05711,88625.0,88624.0,0.05809]
[1765747118051,0.05911,88625.0,88624.0,0.05809]
[1765747123557,0.003,88625.0,88624.0,0.07516]
[1765747124850,0.002,88625.0,88624.0,0.07516]
[1765747125045,0.41691,88645.0,88644.0,0.05809]
[1765747125553,0.41691,88645.0,88644.0,0.07516]
[1765747125754,0.41691,88645.0,88644.0,0.086439]
[1765747126075,0.05611,88645.0,88644.0,0.086439]
[1765747126255,0.08298294,88645.0,88644.0,0.086439]
[1765747126757,0.05911,88645.0,88644.0,0.086439]
[1765747127659,0.06211,88645.0,88644.0,0.086439]
[1765747128158,0.05815057,88645.0,88644.0,0.086439]
[1765747129961,0.05815057,88645.0,88644.0,0.039629]
[1765747130258,0.05815057,88645.0,88644.0,0.069369]
[1765747130657,0.05815057,88645.0,88644.0,0.05809]
[1765747132259,0.05815057,88645.0,88640.0,0.0283495]
[1765747132260,0.05611,88641.0,88640.0,0.0693695]
[1765747132963,0.006,88645.0,88636.0,0.43612922]
[1765747132964,0.05611,88637.0,88636.0,0.43612922]
[1765747133155,0.05611,88637.0,88636.0,0.41905922]
[1765747133557,0.05611,88637.0,88636.0,0.43612922]
[1765747134268,0.05811,88637.0,88636.0,0.43612922]
[1765747135767,0.05811,88637.0,88636.0,0.07532922]
[1765747136568,0.05811,88637.0,88636.0,0.05825922]
[1765747139170,0.05415058,88637.0,88636.0,0.05825922]
[1765747141271,0.05415058,88637.0,88636.0,0.07500922]
[1765747142267,0.05415058,88637.0,88636.0,0.04526922]
[1765747142467,0.05415058,88637.0,88636.0,0.07401922]
[1765747142968,0.002,88637.0,88636.0,0.07401922]
[1765747143265,0.002,88637.0,88636.0,0.43481922]
[1765747145070,0.3608,88646.0,88645.0,0.0681089]
[1765747146373,0.3628,88646.0,88645.0,0.0681089]
[1765747146963,0.3898,88646.0,88645.0,0.0681089]
[1765747147267,0.029,88646.0,88645.0,0.0681089]
[1765747148274,0.05873,88646.0,88645.0,0.0681089]
[1765747149174,0.085472,88646.0,88645.0,0.0681089]
[1765747166096,0.028742,88646.0,88645.0,0.0681089]
[1765747166690,0.002,88646.0,88645.0,0.0681089]
[1765747167898,0.00022582,88655.0,88654.0,0.0685477]
[1765747168201,0.12953987,88680.0,88675.0,0.011275]
[1765747168202,0.3608,88677.0,88675.0,0.011275]
[1765747168396,0.08390885,88676.0,88675.0,0.068545]
[1765747168598,0.08390885,88676.0,88675.0,0.05727]
[1765747169702,0.05583,88669.0,88668.0,0.07331]
[1765747170004,0.08261885,88669.0,88668.0,0.07331]
[1765747171493,0.05583,88668.0,88667.0,0.00016922]
[1765747171792,0.08261885,88668.0,88667.0,0.00016922]
[1765747172194,0.08261885,88668.0,88667.0,0.02845922]
[1765747172992,0.08361885,88668.0,88667.0,0.02845922]
[1765747173296,0.08361885,88668.0,88667.0,0.05716922]
[1765747173694,0.08361885,88668.0,88667.0,0.02845922]
[1765747173897,0.08361885,88668.0,88667.0,0.05716922]
[1765747176502,0.05683,88668.0,88667.0,0.05716922]
[1765747177504,0.001,88668.0,88667.0,0.05716922]
[1765747179004,0.02915,88668.0,88667.0,0.05716922]
[1765747180001,0.001,88668.0,88667.0,0.05716922]
[1765747180802,0.02915,88668.0,88667.0,0.05716922]
[1765747180998,0.41663,88687.0,88686.0,0.057]
[1765747181205,0.44329073,88687.0,88686.0,0.057]
[1765747181405,0.44329073,88687.0,88686.0,0.02829]
[1765747181916,0.44329073,88687.0,88686.0,0.057]
[1765747182212,0.44829073,88687.0,88686.0,0.057]
[1765747182403,0.44929073,88687.0,88686.0,0.057]
[1765747182918,0.05583,88681.0,88680.0,0.0850744]
[1765747186015,0.05583,88681.0,88680.0,0.0738]
[1765747186218,0.05583,88681.0,88680.0,0.057]
[1765747189717,0.05583,88677.0,88676.0,0.0850749]
[1765747191218,0.05583,88677.0,88676.0,0.0860749]
[1765747195825,0.08251372,88677.0,88676.0,0.0860749]
[1765747199122,0.07855429,88677.0,88676.0,0.0860749]
[1765747199524,0.02668372,88677.0,88676.0,0.0860749]
[1765747201412,0.3608,88697.0,88676.0,0.0860749]
[1765747201729,0.3608,88697.0,88696.0,0.0846824]
[1765747201730,0.41608,88697.0,88696.0,0.0846824]
[1765747202127,0.38863,88697.0,88696.0,0.0846824]
[1765747202428,0.3608,88697.0,88696.0,0.0846824]
[1765747202627,0.3648,88697.0,88696.0,0.0846824]
[1765747203119,0.39263,88697.0,88696.0,0.0846824]
[1765747203319,0.3608,88697.0,88696.0,0.0846824]
[1765747203523,0.0112703,88713.0,88705.0,0.07341]
[1765747203524,0.41608,88706.0,88705.0,0.07341]
[1765747204119,0.41608,88706.0,88705.0,0.0846812]
[1765747204932,0.41808,88706.0,88705.0,0.0846812]
[1765747205734,0.3628,88706.0,88705.0,0.0846812]
[1765747206026,0.3628,88706.0,88705.0,0.0866812]
[1765747206420,0.38863,88706.0,88705.0,0.0896812]
[1765747207930,0.41608,88723.0,88722.0,0.0676991]
[1765747209133,0.41608,88723.0,88722.0,0.07895611]
[1765747209534,0.38963,88723.0,88722.0,0.07895611]
[1765747209924,0.41808,88723.0,88722.0,0.07895611]
[1765747210234,0.05728,88723.0,88722.0,0.07895611]
[1765747210737,0.002,88723.0,88722.0,0.64847611]
[1765747211034,0.05728,88723.0,88722.0,0.64847611]
[1765747211826,0.05628,88723.0,88722.0,0.64847611]
[1765747212839,0.05528,88723.0,88722.0,0.64847611]
[1765747213134,0.05528,88731.0,88730.0,0.084678]
[1765747214536,0.05728,88731.0,88730.0,0.084678]
[1765747214937,0.004,88731.0,88730.0,0.084678]
[1765747219342,0.05928,88731.0,88730.0,0.788878]
[1765747219540,0.05928,88731.0,88730.0,0.084678]
[1765747219737,0.05928,88731.0,88730.0,0.788878]
[1765747222743,0.05928,88731.0,88730.0,1.149678]
[1765747223046,0.05928,88731.0,88730.0,0.445478]
[1765747223233,0.004,88731.0,88730.0,0.929438]
[1765747225741,0.05528,88745.0,88744.0,0.05643]
[1765747225944,0.05528,88745.0,88744.0,0.7718163]
[1765747226135,0.0112646,88758.0,88755.0,0.05623]
[1765747226450,0.44462928,88756.0,88755.0,0.07246]
[1765747227340,0.44562928,88756.0,88755.0,0.07246]
[1765747228741,0.41905,88756.0,88755.0,0.07246]
[1765747229141,0.44547598,88756.0,88755.0,0.07246]
[1765747230148,0.05582,88750.0,88749.0,0.3901]
[1765747230345,0.0112653,88753.0,88746.0,0.040566]
[1765747230646,0.05582,88747.0,88746.0,0.067786]
[1765747231549,0.05582,88747.0,88746.0,0.068786]
[1765747233032,0.05582,88747.0,88746.0,0.071786]
[1765747233234,0.3608,88756.0,88746.0,0.071786]
[1765747233235,0.05582,88756.0,88755.0,0.0855949]
[1765747233440,0.08227606,88756.0,88755.0,0.07433]
[1765747233836,0.44307606,88756.0,88755.0,0.07433]
[1765747234047,0.44307606,88756.0,88755.0,0.05652]
[1765747234759,0.44307606,88756.0,88755.0,0.05752]
[1765747235950,0.44307606,88756.0,88755.0,0.001]
[1765747238246,0.44307606,88756.0,88755.0,0.05752]
[1765747238841,0.44307606,88756.0,88755.0,0.07533]
[1765747239742,0.44307606,88756.0,88755.0,0.07433]
[1765747240455,0.44307606,88756.0,88755.0,0.05652]
[1765747241454,0.44307606,88756.0,88755.0,0.05752]
[1765747242052,0.44307606,88756.0,88755.0,0.0303]
[1765747242357,0.44307606,88756.0,88755.0,0.001]
[1765747243957,0.05582,88741.0,88740.0,0.18778716]
[1765747244255,0.08227606,88741.0,88740.0,0.05652]
[1765747244645,0.08227606,88741.0,88740.0,0.0293]
[1765747244845,0.05582,88737.0,88736.0,0.06795642]
[1765747245047,0.08236536,88737.0,88736.0,0.00016912]
[1765747245951,0.08236536,88737.0,88736.0,0.00216912]
[1765747246959,0.44316536,88737.0,88736.0,0.00316912]
[1765747247753,0.44316536,88737.0,88736.0,0.00216912]
[1765747248569,0.44316536,88737.0,88736.0,0.00116912]
[1765747249467,0.44316536,88737.0,88736.0,0.00016912]
[1765747249764,0.44316536,88737.0,88736.0,0.00116912]
[1765747250263,0.44316536,88737.0,88736.0,0.00016912]
[1765747250862,0.44316536,88737.0,88736.0,0.05668912]
[1765747252562,0.44316536,88737.0,88736.0,0.03046912]
[1765747252965,0.44316536,88737.0,88736.0,0.03246912]
[1765747253366,0.44316536,88737.0,88736.0,0.03046912]
[1765747253557,0.44316536,88737.0,88736.0,0.03146912]
[1765747254851,0.44316536,88737.0,88736.0,0.03046912]
[1765747255056,0.44316536,88737.0,88736.0,0.03146912]
[1765747255462,0.44316536,88737.0,88736.0,0.00216912]
[1765747257073,0.44316536,88737.0,88736.0,0.00016912]
[1765747258761,0.44316536,88737.0,88736.0,0.00116912]
[1765747259771,0.44316536,88737.0,88736.0,0.00016912]
[1765747260066,0.05767,88729.0,88728.0,0.0679382]
[1765747260272,0.08421536,88729.0,88728.0,0.0855082]
[1765747260572,0.08025593,88729.0,88728.0,0.0855082]
[1765747261066,0.05371057,88729.0,88728.0,0.0855082]
[1765747261262,0.05371057,88729.0,88728.0,0.0875082]
[1765747262076,0.05371057,88729.0,88728.0,0.0905082]
[1765747262473,0.05371057,88729.0,88728.0,0.0875082]
[1765747262673,0.05371057,88729.0,88728.0,0.0905082]
[1765747263076,0.05371057,88729.0,88728.0,0.0875082]
[1765747263276,0.05371057,88729.0,88728.0,0.0905082]
[1765747265079,0.08029011,88729.0,88728.0,0.0905082]
[1765747266675,0.08029011,88729.0,88728.0,0.07924]
[1765747267882,0.08029011,88729.0,88728.0,0.05967]
[1765747268085,0.05371057,88729.0,88728.0,0.06167]
[1765747268772,0.05371057,88729.0,88728.0,0.05867]
[1765747268975,0.05371057,88729.0,88728.0,0.06067]
[1765747269471,0.05371057,88729.0,88728.0,0.05867]
[1765747269671,0.05371057,88729.0,88728.0,0.05967]
[1765747270070,0.05371057,88729.0,88728.0,0.03189]
[1765747270270,0.05371057,88729.0,88728.0,0.003]
[1765747270477,0.05371057,88729.0,88728.0,0.05967]
[1765747272077,0.08033142,88729.0,88728.0,0.05967]
[1765747272684,0.08033142,88729.0,88728.0,0.05767]
[1765747272887,0.08033142,88729.0,88728.0,0.05967]
[1765747273580,0.08033142,88729.0,88728.0,0.05867]
[1765747273780,0.08033142,88729.0,88728.0,0.06067]
[1765747275681,0.08033142,88729.0,88728.0,0.07824]
[1765747276079,0.08033142,88729.0,88728.0,0.07624]
[1765747276277,0.08033142,88729.0,88728.0,0.07824]
[1765747277584,0.00016843,88737.0,88736.0,0.0679373]
[1765747277784,0.00016843,88737.0,88736.0,0.4287373]
[1765747278989,0.00016843,88737.0,88736.0,0.4327373]
[1765747280187,0.05783843,88737.0,88736.0,0.4357373]
[1765747280391,0.02917843,88737.0,88736.0,0.4357373]
[1765747280789,0.05783843,88737.0,88736.0,0.4357373]
[1765747282203,0.05783843,88737.0,88736.0,0.4347373]
[1765747283082,0.02917843,88737.0,88736.0,0.4317373]
[1765747283284,0.02917843,88737.0,88736.0,0.4337373]
[1765747283684,0.00016843,88737.0,88736.0,0.4337373]
[1765747284987,0.05783843,88737.0,88736.0,0.4337373]
[1765747285585,0.05387901,88737.0,88736.0,0.4337373]
[1765747285896,0.05387901,88737.0,88736.0,0.0729373]
[1765747286097,0.41847,88744.0,88743.0,0.0679364]
[1765747286286,0.44507612,88744.0,88743.0,0.0679364]
[1765747287787,0.44507612,88744.0,88743.0,0.0699364]
[1765747288294,0.44507612,88744.0,88725.0,0.04724]
[1765747288295,0.38740612,88744.0,88725.0,0.04724]
[1765747288494,0.05738,88737.0,88736.0,0.0409373]
[1765747288796,0.08398612,88737.0,88736.0,0.0409373]
[1765747289295,0.08398612,88737.0,88736.0,0.0686373]
[1765747289493,0.08398612,88737.0,88736.0,0.0706373]
[1765747289890,0.08398612,88737.0,88736.0,0.0726373]
[1765747294892,0.05501612,88737.0,88736.0,0.0726373]
[1765747295493,0.08398612,88737.0,88736.0,0.0726373]
[1765747296990,0.05501612,88737.0,88736.0,0.0726373]
[1765747297404,0.41818,88744.0,88743.0,0.0686364]
[1765747297603,0.44480939,88744.0,88743.0,0.0686364]
[1765747299200,0.38742939,88744.0,88743.0,0.0686364]
[1765747299507,0.05738,88761.0,88760.0,0.07317]
[1765747299694,0.08400705,88761.0,88760.0,0.07317]
[1765747300090,0.08400705,88761.0,88760.0,0.07459]
[1765747301998,0.08600705,88761.0,88760.0,0.07459]
[1765747302401,0.08700705,88761.0,88760.0,0.07459]
[1765747309212,0.05738,88756.0,88755.0,0.05737]
[1765747309412,0.08400705,88756.0,88755.0,0.05737]
[1765747310213,0.08400705,88756.0,88752.0,0.00016901]
[1765747310214,0.05738,88753.0,88752.0,0.00016901]
[1765747310712,0.05738,88753.0,88752.0,0.05753901]
[1765747310909,0.05738,88753.0,88752.0,0.00016901]
[1765747311115,0.44478105,88753.0,88752.0,0.00016901]
[1765747311704,0.44578105,88753.0,88752.0,0.00016901]
[1765747312710,0.44478105,88753.0,88752.0,0.00016901]
[1765747312909,0.44678105,88753.0,88752.0,0.00016901]
[1765747314513,0.44478105,88753.0,88752.0,0.00016901]
[1765747314713,0.44678105,88753.0,88752.0,0.00016901]
[1765747315013,0.05738,88741.0,88740.0,0.17164971]
[1765747315317,0.05738,88741.0,88740.0,0.05737]
[1765747315908,0.05738,88740.0,88739.0,0.05737]
[1765747316110,0.05738,88740.0,88739.0,0.02967]
[1765747316505,0.05738,88740.0,88739.0,0.05737]
[1765747316901,0.0563,88733.0,88732.0,0.00016901]
[1765747317607,0.08290611,88733.0,88732.0,0.00016901]
[1765747318016,0.08290611,88733.0,88732.0,0.00116901]
[1765747318617,0.08390611,88733.0,88732.0,0.00016901]
[1765747325020,0.0563,88719.0,88718.0,0.3608]
[1765747325319,0.0563,88719.0,88713.0,0.76108]
[1765747325320,0.0563,88714.0,88713.0,0.76108]
[1765747325611,0.0563,88714.0,88713.0,0.77209645]
[1765747326613,0.3608,88719.0,88718.0,0.0683096]
[1765747326614,0.0563,88719.0,88718.0,0.0683096]
[1765747327004,0.0563,88719.0,88718.0,0.05704]
[1765747327210,0.0563,88706.0,88705.0,0.00016901]
[1765747328109,0.0563,88706.0,88705.0,0.02917901]
[1765747328412,0.0563,88706.0,88705.0,0.05720901]
[1765747329010,0.0563,88706.0,88705.0,0.02917901]
[1765747329217,0.0563,88706.0,88705.0,0.00116901]
[1765747329719,0.0563,88706.0,88705.0,0.07048021]
[1765747329918,0.0563,88706.0,88705.0,0.08773021]
[1765747330416,0.02923,88706.0,88705.0,0.08773021]
[1765747331222,0.02923,88706.0,88705.0,0.08673021]
[1765747331423,0.0563,88706.0,88705.0,0.08673021]
[1765747332022,0.0563,88706.0,88705.0,0.08773021]
[1765747332524,0.0563,88706.0,88705.0,0.08873021]
[1765747333918,0.0563,88706.0,88705.0,0.08773021]
[1765747334216,0.0563,88706.0,88705.0,0.08973021]
[1765747337018,0.0563,88706.0,88705.0,0.08773021]
[1765747337221,0.0563,88706.0,88705.0,0.08973021]
[1765747337810,0.0563,88706.0,88705.0,0.08773021]
[1765747338016,0.0563,88706.0,88705.0,0.08973021]
[1765747338522,0.39003,88709.0,88708.0,0.05704]
[1765747338725,0.4171,88709.0,88708.0,0.05704]
[1765747340615,0.4171,88709.0,88708.0,0.05804]
[1765747340816,0.4171,88709.0,88708.0,0.05904]
[1765747341218,0.4171,88709.0,88708.0,0.05804]
[1765747343116,0.4171,88709.0,88708.0,0.001]
[1765747343320,0.0563,88706.0,88705.0,0.00016901]
[1765747344429,0.0563,88706.0,88705.0,0.05720901]
[1765747344723,0.0563,88706.0,88705.0,0.07445901]
[1765747344932,0.0573,88706.0,88705.0,0.07445901]
[1765747345231,0.08394803,88706.0,88705.0,0.07445901]
[1765747346532,0.08394803,88706.0,88705.0,0.07545901]
[1765747346918,0.08294803,88706.0,88705.0,0.07545901]
[1765747347124,0.08294803,88706.0,88705.0,0.07645901]
[1765747347422,0.08294803,88706.0,88705.0,0.07545901]
[1765747347630,0.08294803,88706.0,88705.0,0.07645901]
[1765747349428,0.08294803,88706.0,88705.0,0.07545901]
[1765747349627,0.44374803,88706.0,88705.0,0.07745901]
[1765747350233,0.44374803,88706.0,88705.0,0.07445901]
[1765747350430,0.08294803,88706.0,88705.0,0.07645901]
[1765747350834,0.08294803,88706.0,88705.0,0.07545901]
[1765747351135,0.08294803,88706.0,88705.0,0.07645901]
[1765747351837,0.05571,88691.0,88690.0,0.08506471]
[1765747352034,0.05571,88691.0,88690.0,0.05663]
[1765747352230,0.05571,88691.0,88690.0,0.0845169]
[1765747353538,0.05571,88691.0,88690.0,0.0875169]
[1765747354131,0.08238691,88691.0,88690.0,0.0875169]
[1765747354526,0.08238691,88691.0,88690.0,0.0895169]
[1765747356840,0.02667691,88691.0,88690.0,0.0895169]
[1765747357140,0.08238691,88691.0,88690.0,0.0895169]
[1765747358642,0.02667691,88691.0,88690.0,0.0895169]
[1765747359640,0.05432691,88691.0,88690.0,0.0895169]
[1765747363639,0.02667691,88691.0,88690.0,0.0895169]
[1765747363828,0.00016911,88699.0,88698.0,0.05663]
[1765747363829,0.05587911,88699.0,88698.0,0.05663]
[1765747364030,0.08256653,88699.0,88698.0,0.0679021]
[1765747365747,0.08256653,88699.0,88698.0,0.0689021]
[1765747370138,0.02685653,88699.0,88698.0,0.0689021]
[1765747370337,0.05450653,88699.0,88698.0,0.0689021]
[1765747372947,0.08256653,88699.0,88698.0,0.0689021]
[1765747375951,0.02685653,88699.0,88698.0,0.0689021]
[1765747376347,0.05450653,88699.0,88698.0,0.0689021]
[1765747376947,0.08191653,88699.0,88698.0,0.0689021]
[1765747383661,0.3608,88712.0,88698.0,0.0689021]
[1765747383662,0.41681,88712.0,88711.0,0.0695505]
[1765747384050,0.41681,88712.0,88698.0,0.001]
[1765747384051,0.0112717,88702.0,88698.0,0.001]
[1765747384257,0.05601,88699.0,88698.0,0.001]
[1765747384858,0.05601,88696.0,88695.0,0.0695525]
[1765747385346,0.05601,88696.0,88695.0,0.0875425]
[1765747385759,0.05617911,88707.0,88706.0,0.0695511]
[1765747387656,0.05617911,88707.0,88706.0,0.0715511]
[1765747388057,0.05617911,88707.0,88706.0,0.0725511]
[1765747388651,0.05617911,88707.0,88706.0,0.0735511]
[1765747389358,0.05617911,88707.0,88706.0,0.0725511]
[1765747395664,0.08279441,88707.0,88706.0,0.0725511]
[1765747408371,0.08279441,88707.0,88706.0,0.06128]
[1765747408762,0.07883498,88707.0,88706.0,0.06128]
[1765747410360,0.07883498,88707.0,88706.0,0.05828]
[1765747410560,0.05548,88696.0,88695.0,0.0840625]
[1765747410761,0.0820953,88696.0,88695.0,0.0840625]
[1765747412268,0.05548,88696.0,88695.0,0.0840625]
[1765747412473,0.41628,88710.0,88709.0,0.0660707]
[1765747412673,0.44281356,88710.0,88709.0,0.0660707]
[1765747413673,0.44281356,88710.0,88709.0,0.0680707]
[1765747414573,0.44281356,88710.0,88709.0,0.0690707]
[1765747414871,0.43902324,88710.0,88709.0,0.0690707]
[1765747415971,0.43902324,88710.0,88709.0,0.0670707]
[1765747416175,0.43902324,88710.0,88709.0,0.0690707]
[1765747416678,0.43902324,88710.0,88709.0,0.0680707]
[1765747416976,0.43902324,88710.0,88709.0,0.0690707]
[1765747417178,0.08201356,88710.0,88709.0,0.0690707]
[1765747418979,0.08201356,88710.0,88709.0,0.0680707]
[1765747419290,0.08201356,88710.0,88709.0,0.0690707]
[1765747419580,0.08201356,88710.0,88709.0,0.0680707]
[1765747419779,0.08201356,88710.0,88709.0,0.0690707]
[1765747420185,0.08201356,88710.0,88709.0,0.0680707]
[1765747420484,0.08201356,88710.0,88709.0,0.0690707]
[1765747420780,0.08201356,88710.0,88709.0,0.0680707]
[1765747420980,0.08201356,88710.0,88709.0,0.0690707]
[1765747421364,0.08201356,88710.0,88709.0,0.0670707]
[1765747421570,0.08201356,88710.0,88709.0,0.0690707]
[1765747422880,0.08201356,88710.0,88709.0,0.0680707]
[1765747423075,0.08201356,88710.0,88709.0,0.0690707]
[1765747426781,0.44281356,88710.0,88709.0,0.0690707]
[1765747433891,0.02653356,88710.0,88709.0,0.0690707]
[1765747434094,0.0228574,88710.0,88709.0,0.0690707]
[1765747434387,0.00016911,88715.0,88714.0,0.0660701]
[1765747434582,0.00016911,88715.0,88714.0,0.4268701]
[1765747435586,0.00016911,88715.0,88714.0,0.4278701]
[1765747436793,0.00116911,88715.0,88714.0,0.4318701]
[1765747437485,0.05656911,88715.0,88714.0,0.4318701]
[1765747438084,0.05656911,88715.0,88714.0,0.4308701]
[1765747438402,0.05656911,88715.0,88714.0,0.4348701]
[1765747438693,0.05556911,88715.0,88714.0,0.4308701]
[1765747438894,0.05656911,88715.0,88714.0,0.4308701]
[1765747439189,0.05656911,88715.0,88714.0,0.4236]
[1765747439383,0.0564,88715.0,88714.0,0.3688]
[1765747439779,0.0564,88715.0,88714.0,0.3648]
[1765747439991,0.0554,88715.0,88714.0,0.3668]
[1765747440193,0.0554,88715.0,88714.0,0.03323]
[1765747440784,0.0554,88715.0,88714.0,0.03123]
[1765747441495,0.0554,88715.0,88714.0,0.05607]
[1765747441678,0.0554,88715.0,88714.0,0.05707]
[1765747442891,0.0282,88715.0,88714.0,0.05707]
[1765747443395,0.0554,88715.0,88714.0,0.05707]
[1765747446390,0.0554,88715.0,88714.0,0.02823]
[1765747446593,0.0554,88715.0,88714.0,0.05707]
[1765747449709,0.06667,88715.0,88714.0,0.001]
[1765747450895,0.05495,88713.0,88712.0,0.0385003]
[1765747451112,0.05495,88713.0,88712.0,0.0673403]
[1765747452307,0.05495,88713.0,88712.0,0.0683403]
[1765747453810,0.05495,88713.0,88712.0,0.0693403]
[1765747454815,0.05495,88713.0,88712.0,0.0863803]
[1765747460434,0.08134035,88713.0,88712.0,0.0863803]
[1765747463125,0.0813477,88713.0,88712.0,0.0863803]
[1765747463929,0.0813477,88713.0,88712.0,0.002]
[1765747464527,0.0813477,88713.0,88712.0,0.02923]
[1765747464724,0.0813477,88713.0,88712.0,0.05807]
[1765747465127,0.0813477,88713.0,88712.0,0.05707]
[1765747468636,0.0813477,88713.0,88712.0,0.001]
[1765747469533,0.05669,88705.0,88704.0,0.07424]
[1765747469830,0.0830877,88705.0,88704.0,0.07424]
[1765747470629,0.0830877,88705.0,88704.0,0.07524]
[1765747472926,0.0830877,88705.0,88704.0,0.07724]
[1765747478940,0.08314414,88705.0,88704.0,0.07724]
[1765747500954,0.08362057,88705.0,88704.0,0.07724]
[1765747505154,0.08362057,88705.0,88704.0,0.03185]
[1765747505750,0.08362057,88705.0,88704.0,0.003]
[1765747506154,0.08362057,88705.0,88704.0,0.002]
[1765747507051,0.08361316,88705.0,88704.0,0.002]
[1765747507662,0.08361316,88705.0,88704.0,0.001]
[1765747510760,0.08361316,88705.0,88704.0,0.07465]
[1765747513266,0.44441316,88705.0,88704.0,0.07465]
[1765747521375,0.44441316,88705.0,88704.0,0.001]
[1765747522564,0.44441316,88705.0,88704.0,0.05753]
[1765747523368,0.44441316,88705.0,88704.0,0.07465]
[1765747525871,0.44441316,88705.0,88704.0,0.001]
[1765747527471,0.08361316,88705.0,88704.0,0.001]
[1765747527769,0.44441316,88705.0,88704.0,0.001]
[1765747529474,0.05672,88696.0,88695.0,0.05904]
[1765747529675,0.08364316,88696.0,88695.0,0.05904]
[1765747530570,0.08364316,88696.0,88695.0,0.06204]
[1765747531182,0.08364316,88696.0,88695.0,0.06404]
[1765747532175,0.44444316,88696.0,88695.0,0.06404]
[1765747536179,0.44444316,88696.0,88695.0,0.005]
[1765747536379,0.44444316,88696.0,88695.0,0.06192]
[1765747537577,0.44444316,88696.0,88695.0,0.005]
[1765747538370,0.44444316,88696.0,88672.0,0.09724964]
[1765747538371,0.05406,88682.0,88677.0,3e-08]
[1765747538573,0.00987,88688.0,88652.0,0.01636]
[1765747538574,0.0013,88653.0,88652.0,0.01636]
[1765747538972,0.0013,88653.0,88640.0,0.04475]
[1765747538973,0.0013,88641.0,88640.0,0.04475]
[1765747539174,0.0013,88641.0,88640.0,0.01636]
[1765747539366,0.01258,88636.0,88635.0,0.01636]
[1765747539572,0.0013,88633.0,88632.0,0.01652921]